[Event "Late-Titled-Tuesday-Blitz-January-30-2024"]
[Site "Chess.com"]
[Date "2024.01.30"]
[Round "10"]
[White "malakismayil"]
[Black "TheAlienParty"]
[Result "1-0"]
[WhiteElo "2536"]
[BlackElo "2390"]
[TimeControl "180+1"]
[EndTime "15:55:11 PST"]
[Termination "malakismayil won on time"]

1. e4 {[%clk 0:03:00.9]} 1... e5 {[%clk 0:02:51.7]} 2. Nf3 {[%clk 0:02:58.3]}
2... Nc6 {[%clk 0:02:51.9]} 3. Bc4 {[%clk 0:02:56.1]} 3... Bc5 {[%clk
0:02:50.2]} 4. d3 {[%clk 0:02:55]} 4... Nf6 {[%clk 0:02:48.9]} 5. O-O {[%clk
0:02:55.1]} 5... h6 {[%clk 0:02:40.9]} 6. Nc3 {[%clk 0:02:54.2]} 6... d6 {[%clk
0:02:38.7]} 7. h3 {[%clk 0:02:54.6]} 7... a6 {[%clk 0:02:36.3]} 8. Be3 {[%clk
0:02:54.6]} 8... Nd4 {[%clk 0:02:24.8]} 9. Bxd4 {[%clk 0:02:50.4]} 9... exd4
{[%clk 0:02:21.4]} 10. Ne2 {[%clk 0:02:50.1]} 10... b5 {[%clk 0:02:17]} 11. Bb3
{[%clk 0:02:47.8]} 11... O-O {[%clk 0:02:02]} 12. Nexd4 {[%clk 0:02:44.5]} 12...
Bb7 {[%clk 0:01:58.3]} 13. Ne2 {[%clk 0:02:43]} 13... Bb6 {[%clk 0:01:57]} 14.
Ng3 {[%clk 0:02:41.4]} 14... Kh7 {[%clk 0:01:54.7]} 15. Re1 {[%clk 0:02:41.5]}
15... c5 {[%clk 0:01:53.9]} 16. c3 {[%clk 0:02:41]} 16... Nd7 {[%clk 0:01:48]}
17. d4 {[%clk 0:02:38.4]} 17... cxd4 {[%clk 0:01:44.4]} 18. cxd4 {[%clk
0:02:39.3]} 18... Rc8 {[%clk 0:01:35.3]} 19. Rc1 {[%clk 0:02:35.6]} 19... Rxc1
{[%clk 0:01:29.6]} 20. Qxc1 {[%clk 0:02:36.5]} 20... Qf6 {[%clk 0:01:27.7]} 21.
Qd2 {[%clk 0:02:32.3]} 21... Rc8 {[%clk 0:01:25.3]} 22. Qd3 {[%clk 0:02:31.9]}
22... Kh8 {[%clk 0:01:17.4]} 23. e5 {[%clk 0:02:18.3]} 23... dxe5 {[%clk
0:01:14.4]} 24. dxe5 {[%clk 0:02:19.2]} 24... Nc5 {[%clk 0:00:43.5]} 25. exf6
{[%clk 0:01:46.8]} 25... Nxd3 {[%clk 0:00:40.1]} 26. fxg7+ {[%clk 0:01:46.9]}
26... Kxg7 {[%clk 0:00:39.4]} 27. Re7 {[%clk 0:01:47]} 27... Bxf2+ {[%clk
0:00:29.1]} 28. Kh2 {[%clk 0:01:45.6]} 28... Bxf3 {[%clk 0:00:25.5]} 29. gxf3
{[%clk 0:01:42.5]} 29... Bxg3+ {[%clk 0:00:19.8]} 30. Kxg3 {[%clk 0:01:41.9]}
30... Rf8 {[%clk 0:00:19.9]} 31. Ra7 {[%clk 0:01:38.6]} 31... Kf6 {[%clk
0:00:18.4]} 32. Rxa6+ {[%clk 0:01:38.7]} 32... Ke5 {[%clk 0:00:18.8]} 33. Rxh6
{[%clk 0:01:35.1]} 33... f5 {[%clk 0:00:17.7]} 34. Rb6 {[%clk 0:01:28.6]} 34...
b4 {[%clk 0:00:17]} 35. Bc2 {[%clk 0:01:20.7]} 35... Rg8+ {[%clk 0:00:16.6]} 36.
Kh2 {[%clk 0:01:20.2]} 36... Ne1 {[%clk 0:00:16.1]} 37. Bd1 {[%clk 0:01:14.7]}
37... Kf4 {[%clk 0:00:14.2]} 38. Rxb4+ {[%clk 0:01:12.8]} 38... Ke3 {[%clk
0:00:14.5]} 39. h4 {[%clk 0:00:55.9]} 39... f4 {[%clk 0:00:11.4]} 40. Re4+
{[%clk 0:00:47.8]} 40... Kf2 {[%clk 0:00:10.1]} 41. Re2+ {[%clk 0:00:37]} 41...
Kf1 {[%clk 0:00:10.3]} 42. Rd2 {[%clk 0:00:34.3]} 42... Ng2 {[%clk 0:00:04]} 43.
Be2+ {[%clk 0:00:29.6]} 43... Ke1 {[%clk 0:00:03.7]} 44. Rc2 {[%clk 0:00:29.6]}
44... Nxh4 {[%clk 0:00:03.3]} 45. Kh3 {[%clk 0:00:25.4]} 45... Ng2 {[%clk
0:00:02.9]} 46. Bc4 {[%clk 0:00:23.9]} 46... Ne3 {[%clk 0:00:01.5]} 47. Re2+
{[%clk 0:00:22.6]} 47... Kd1 {[%clk 0:00:01.4]} 48. Bxg8 {[%clk 0:00:20.1]} 1-0

[Event "Late-Titled-Tuesday-Blitz-January-30-2024"]
[Site "Chess.com"]
[Date "2024.01.30"]
[Round "10"]
[White "Polish_fighter3000"]
[Black "Elsa167"]
[Result "1-0"]
[WhiteElo "3057"]
[BlackElo "2902"]
[TimeControl "180+1"]
[EndTime "15:55:12 PST"]
[Termination "Polish_fighter3000 won on time"]

1. d4 {[%clk 0:03:00.9]} 1... e6 {[%clk 0:02:58.9]} 2. c4 {[%clk 0:02:59.1]}
2... Nf6 {[%clk 0:02:58.4]} 3. Nf3 {[%clk 0:02:57.7]} 3... d5 {[%clk 0:02:57.5]}
4. Nc3 {[%clk 0:02:57.3]} 4... a6 {[%clk 0:02:57.2]} 5. cxd5 {[%clk 0:02:54.9]}
5... exd5 {[%clk 0:02:58.1]} 6. Bg5 {[%clk 0:02:54.8]} 6... Be6 {[%clk
0:02:58.4]} 7. e3 {[%clk 0:02:54.1]} 7... Nbd7 {[%clk 0:02:58.2]} 8. Bd3 {[%clk
0:02:46]} 8... Bd6 {[%clk 0:02:58]} 9. O-O {[%clk 0:02:40.4]} 9... c6 {[%clk
0:02:55]} 10. Bf4 {[%clk 0:02:38]} 10... Qb8 {[%clk 0:02:54.5]} 11. Qd2 {[%clk
0:02:37.3]} 11... O-O {[%clk 0:02:54]} 12. h3 {[%clk 0:02:37.3]} 12... Re8
{[%clk 0:02:51]} 13. Rfe1 {[%clk 0:02:32.3]} 13... a5 {[%clk 0:02:47.9]} 14. b3
{[%clk 0:02:31.4]} 14... h6 {[%clk 0:02:41.2]} 15. Rac1 {[%clk 0:02:29.5]} 15...
Nh5 {[%clk 0:02:40]} 16. Bxd6 {[%clk 0:02:28.6]} 16... Qxd6 {[%clk 0:02:40.9]}
17. Na4 {[%clk 0:02:27.7]} 17... Nhf6 {[%clk 0:02:38.8]} 18. Nc5 {[%clk
0:02:25.5]} 18... Nxc5 {[%clk 0:02:24.7]} 19. Rxc5 {[%clk 0:02:18.8]} 19... a4
{[%clk 0:02:08.2]} 20. b4 {[%clk 0:02:18.7]} 20... Nd7 {[%clk 0:01:58.2]} 21.
Rc2 {[%clk 0:02:17.6]} 21... Rac8 {[%clk 0:01:51]} 22. Rec1 {[%clk 0:02:15.5]}
22... Nb6 {[%clk 0:01:34.8]} 23. Ne5 {[%clk 0:01:57.2]} 23... f6 {[%clk
0:01:29.5]} 24. Ng6 {[%clk 0:01:51.6]} 24... Nc4 {[%clk 0:01:27.6]} 25. Bxc4
{[%clk 0:01:49]} 25... dxc4 {[%clk 0:01:28.5]} 26. Nf4 {[%clk 0:01:49.2]} 26...
Bf7 {[%clk 0:01:26.6]} 27. Rxc4 {[%clk 0:01:42.3]} 27... Bxc4 {[%clk 0:01:04.8]}
28. Rxc4 {[%clk 0:01:43.2]} 28... Qe7 {[%clk 0:00:54.8]} 29. a3 {[%clk
0:01:26.4]} 29... Qe4 {[%clk 0:00:54.3]} 30. Rc5 {[%clk 0:01:21]} 30... Rcd8
{[%clk 0:00:52.9]} 31. Qd1 {[%clk 0:01:16.2]} 31... b6 {[%clk 0:00:42.8]} 32.
Rc3 {[%clk 0:01:06.7]} 32... c5 {[%clk 0:00:31.2]} 33. bxc5 {[%clk 0:01:07.6]}
33... bxc5 {[%clk 0:00:32.1]} 34. Rxc5 {[%clk 0:01:07.6]} 34... Rb8 {[%clk
0:00:32.6]} 35. Qxa4 {[%clk 0:01:04.9]} 35... Rb1+ {[%clk 0:00:28.9]} 36. Kh2
{[%clk 0:01:04.9]} 36... Reb8 {[%clk 0:00:22.2]} 37. Qd7 {[%clk 0:00:47.1]}
37... R1b7 {[%clk 0:00:19.9]} 38. Qg4 {[%clk 0:00:46.6]} 38... g5 {[%clk
0:00:09.9]} 39. Nd5 {[%clk 0:00:38.4]} 39... Qxg4 {[%clk 0:00:03.8]} 40. Nxf6+
{[%clk 0:00:37.8]} 40... Kh8 {[%clk 0:00:04.4]} 41. Nxg4 {[%clk 0:00:38.3]}
41... Rb6 {[%clk 0:00:02.5]} 42. Kg3 {[%clk 0:00:23.7]} 42... Ra8 {[%clk
0:00:03]} 43. Rf5 {[%clk 0:00:17.3]} 43... Rxa3 {[%clk 0:00:02.6]} 44. h4 {[%clk
0:00:17.2]} 44... gxh4+ {[%clk 0:00:03.1]} 45. Kxh4 {[%clk 0:00:18.1]} 45... Ra1
{[%clk 0:00:02.8]} 46. Ne5 {[%clk 0:00:17.5]} 46... Rh1+ {[%clk 0:00:02.3]} 47.
Kg3 {[%clk 0:00:17.5]} 47... Kg7 {[%clk 0:00:01.5]} 48. Rf7+ {[%clk 0:00:17.3]}
48... Kg8 {[%clk 0:00:01.8]} 49. Kf3 {[%clk 0:00:17.3]} 1-0

[Event "Late-Titled-Tuesday-Blitz-January-30-2024"]
[Site "Chess.com"]
[Date "2024.01.30"]
[Round "10"]
[White "Anar_Aliakbarov"]
[Black "pooh2012"]
[Result "0-1"]
[WhiteElo "2631"]
[BlackElo "2514"]
[TimeControl "180+1"]
[EndTime "15:55:19 PST"]
[Termination "pooh2012 won by resignation"]

1. d4 {[%clk 0:03:00.9]} 1... Nf6 {[%clk 0:02:59.1]} 2. c4 {[%clk 0:03:00.5]}
2... e6 {[%clk 0:02:59.3]} 3. Nc3 {[%clk 0:03:00.8]} 3... Bb4 {[%clk 0:02:58.2]}
4. a3 {[%clk 0:03:01]} 4... Bxc3+ {[%clk 0:02:57.7]} 5. bxc3 {[%clk 0:03:01.9]}
5... c5 {[%clk 0:02:57.8]} 6. e3 {[%clk 0:03:01.8]} 6... O-O {[%clk 0:02:57.2]}
7. Bd3 {[%clk 0:03:02.3]} 7... b6 {[%clk 0:02:54.3]} 8. Ne2 {[%clk 0:03:02.5]}
8... Nc6 {[%clk 0:02:52.8]} 9. O-O {[%clk 0:03:02.9]} 9... Ba6 {[%clk
0:02:52.3]} 10. e4 {[%clk 0:03:03.5]} 10... e5 {[%clk 0:02:49.2]} 11. d5 {[%clk
0:02:37.5]} 11... Na5 {[%clk 0:02:48.4]} 12. f4 {[%clk 0:02:36.3]} 12... Re8
{[%clk 0:02:40.4]} 13. fxe5 {[%clk 0:02:35.6]} 13... Rxe5 {[%clk 0:02:41]} 14.
Bf4 {[%clk 0:02:36.1]} 14... Rxe4 {[%clk 0:02:39.2]} 15. Bg5 {[%clk 0:02:24.5]}
15... Re5 {[%clk 0:01:58.9]} 16. Bxf6 {[%clk 0:02:20.9]} 16... gxf6 {[%clk
0:01:59.8]} 17. Ng3 {[%clk 0:02:20.6]} 17... Kh8 {[%clk 0:01:36.7]} 18. Rf4
{[%clk 0:02:14.4]} 18... f5 {[%clk 0:01:21]} 19. Nxf5 {[%clk 0:02:12]} 19... Qg5
{[%clk 0:00:55.7]} 20. Rg4 {[%clk 0:02:07.3]} 20... Qf6 {[%clk 0:00:54.3]} 21.
Ng3 {[%clk 0:01:54.6]} 21... Rg8 {[%clk 0:00:27.5]} 22. Rxg8+ {[%clk 0:01:51.1]}
22... Kxg8 {[%clk 0:00:28.4]} 23. Qg4+ {[%clk 0:01:51.3]} 23... Qg5 {[%clk
0:00:23.8]} 24. Qxg5+ {[%clk 0:01:14.9]} 24... Rxg5 {[%clk 0:00:24.7]} 25. Re1
{[%clk 0:01:13.1]} 25... Bxc4 {[%clk 0:00:19.8]} 26. Re8+ {[%clk 0:01:11.5]}
26... Kg7 {[%clk 0:00:19.2]} 27. Nf5+ {[%clk 0:01:01.3]} 27... Kf6 {[%clk
0:00:17.7]} 28. Bxc4 {[%clk 0:00:50.1]} 28... Nxc4 {[%clk 0:00:18.6]} 29. Ng3
{[%clk 0:00:44.2]} 29... Rxd5 {[%clk 0:00:16.4]} 30. Ra8 {[%clk 0:00:41.2]}
30... a5 {[%clk 0:00:14.6]} 31. a4 {[%clk 0:00:39.3]} 31... Rd3 {[%clk
0:00:12.7]} 32. Kf2 {[%clk 0:00:35.2]} 32... d5 {[%clk 0:00:12.6]} 33. Rd8
{[%clk 0:00:33.7]} 33... Ke7 {[%clk 0:00:10.4]} 34. Rh8 {[%clk 0:00:32.4]} 34...
Rxc3 {[%clk 0:00:10]} 35. Rxh7 {[%clk 0:00:33.1]} 35... Rc2+ {[%clk 0:00:09.9]}
36. Kf3 {[%clk 0:00:32.4]} 36... Ne5+ {[%clk 0:00:10.2]} 37. Kf4 {[%clk
0:00:32.4]} 37... Nd3+ {[%clk 0:00:10.4]} 38. Ke3 {[%clk 0:00:32.7]} 38... Ne5
{[%clk 0:00:10.4]} 39. Nf5+ {[%clk 0:00:25.1]} 39... Kf6 {[%clk 0:00:09.8]} 40.
Nh4 {[%clk 0:00:17.7]} 40... d4+ {[%clk 0:00:09.4]} 41. Ke4 {[%clk 0:00:18.3]}
41... Re2+ {[%clk 0:00:09.7]} 42. Kd5 {[%clk 0:00:18.9]} 42... d3 {[%clk
0:00:10.2]} 43. Rh6+ {[%clk 0:00:17.3]} 43... Ng6 {[%clk 0:00:09.7]} 44. Nxg6
{[%clk 0:00:12.3]} 44... fxg6 {[%clk 0:00:09.4]} 45. Rh3 {[%clk 0:00:12.7]}
45... d2 {[%clk 0:00:07.4]} 46. Rd3 {[%clk 0:00:12.3]} 46... Rxg2 {[%clk
0:00:07.3]} 47. Kc4 {[%clk 0:00:10.9]} 47... Ke5 {[%clk 0:00:06.8]} 48. Kb5
{[%clk 0:00:10.1]} 48... Rxh2 {[%clk 0:00:06.2]} 49. Kxb6 {[%clk 0:00:10]} 49...
c4 {[%clk 0:00:06.6]} 50. Rd8 {[%clk 0:00:09.5]} 50... c3 {[%clk 0:00:07]} 51.
Kxa5 {[%clk 0:00:10.4]} 51... c2 {[%clk 0:00:07.2]} 0-1

[Event "Late-Titled-Tuesday-Blitz-January-30-2024"]
[Site "Chess.com"]
[Date "2024.01.30"]
[Round "10"]
[White "egnfanclub"]
[Black "AndreyNeves"]
[Result "1-0"]
[WhiteElo "2363"]
[BlackElo "2095"]
[TimeControl "180+1"]
[EndTime "15:55:20 PST"]
[Termination "egnfanclub won by resignation"]

1. e4 {[%clk 0:03:00.9]} 1... c6 {[%clk 0:02:56.3]} 2. d4 {[%clk 0:03:00.6]}
2... d5 {[%clk 0:02:55.9]} 3. exd5 {[%clk 0:03:01.5]} 3... cxd5 {[%clk
0:02:55.5]} 4. c4 {[%clk 0:03:02.1]} 4... Nf6 {[%clk 0:02:55.1]} 5. Nc3 {[%clk
0:03:02.5]} 5... Nc6 {[%clk 0:02:55.2]} 6. Nf3 {[%clk 0:03:02.5]} 6... a6 {[%clk
0:02:55.8]} 7. cxd5 {[%clk 0:02:58.3]} 7... Nxd5 {[%clk 0:02:55.3]} 8. Qb3
{[%clk 0:02:58.1]} 8... e6 {[%clk 0:02:48.5]} 9. Bg5 {[%clk 0:02:47.9]} 9... Be7
{[%clk 0:02:43.9]} 10. Nxd5 {[%clk 0:02:42.1]} 10... exd5 {[%clk 0:02:24.6]} 11.
Bxe7 {[%clk 0:02:34.9]} 11... Qxe7+ {[%clk 0:02:22.4]} 12. Qe3 {[%clk
0:02:34.7]} 12... Qxe3+ {[%clk 0:02:20.4]} 13. fxe3 {[%clk 0:02:34.5]} 13... Bf5
{[%clk 0:02:16.3]} 14. Kd2 {[%clk 0:02:25.5]} 14... O-O {[%clk 0:02:12.9]} 15.
Rc1 {[%clk 0:02:18.6]} 15... Rac8 {[%clk 0:02:08.4]} 16. a3 {[%clk 0:02:18.2]}
16... f6 {[%clk 0:02:04.2]} 17. b4 {[%clk 0:02:10.8]} 17... Na7 {[%clk
0:01:51.5]} 18. Be2 {[%clk 0:02:08]} 18... Be4 {[%clk 0:01:32.9]} 19. Rc5 {[%clk
0:02:00.5]} 19... b6 {[%clk 0:01:30.9]} 20. Rxc8 {[%clk 0:01:55.9]} 20... Rxc8
{[%clk 0:01:30.6]} 21. Rc1 {[%clk 0:01:56.4]} 21... Rxc1 {[%clk 0:01:25]} 22.
Kxc1 {[%clk 0:01:57.3]} 22... a5 {[%clk 0:01:16]} 23. Kb2 {[%clk 0:01:48]} 23...
axb4 {[%clk 0:01:13.5]} 24. axb4 {[%clk 0:01:48.9]} 24... Kf7 {[%clk 0:01:06.1]}
25. g3 {[%clk 0:01:44.7]} 25... Ke6 {[%clk 0:01:04.3]} 26. Nd2 {[%clk
0:01:44.9]} 26... f5 {[%clk 0:00:56.7]} 27. Kc3 {[%clk 0:01:23.2]} 27... Nc8
{[%clk 0:00:56.1]} 28. Bb5 {[%clk 0:01:19.2]} 28... Nd6 {[%clk 0:00:55.5]} 29.
Bc6 {[%clk 0:01:12.1]} 29... g5 {[%clk 0:00:49.7]} 30. h4 {[%clk 0:01:02]} 30...
gxh4 {[%clk 0:00:44.4]} 31. gxh4 {[%clk 0:01:02.9]} 31... Nf7 {[%clk 0:00:26.3]}
32. Nf1 {[%clk 0:00:51.6]} 32... Nh6 {[%clk 0:00:24.8]} 33. Ng3 {[%clk
0:00:50.5]} 33... Ng4 {[%clk 0:00:24.7]} 34. Kd2 {[%clk 0:00:50]} 34... Kd6
{[%clk 0:00:15.6]} 35. b5 {[%clk 0:00:50.5]} 35... Ke6 {[%clk 0:00:14.8]} 36.
Nh5 {[%clk 0:00:50.3]} 36... Nf6 {[%clk 0:00:12.1]} 37. Nf4+ {[%clk 0:00:40.9]}
37... Kd6 {[%clk 0:00:11]} 38. Kc3 {[%clk 0:00:38.8]} 38... Ng4 {[%clk
0:00:10.5]} 39. Kd2 {[%clk 0:00:39.2]} 39... Nf6 {[%clk 0:00:10.1]} 40. h5
{[%clk 0:00:35.5]} 40... Bf3 {[%clk 0:00:09.2]} 41. h6 {[%clk 0:00:30.2]} 41...
Ng4 {[%clk 0:00:07.9]} 42. Nh5 {[%clk 0:00:26.5]} 42... Nxh6 {[%clk 0:00:07.7]}
43. Nf6 {[%clk 0:00:27.1]} 43... Ng4 {[%clk 0:00:06.8]} 44. Nxh7 {[%clk
0:00:26.8]} 44... Ke6 {[%clk 0:00:06.6]} 45. Ng5+ {[%clk 0:00:26.7]} 45... Kd6
{[%clk 0:00:05.7]} 46. Nxf3 {[%clk 0:00:27.6]} 46... Nf6 {[%clk 0:00:05.6]} 47.
Ne5 {[%clk 0:00:26.5]} 47... Ne4+ {[%clk 0:00:06.5]} 48. Kd3 {[%clk 0:00:26.7]}
48... Nf2+ {[%clk 0:00:06.5]} 49. Ke2 {[%clk 0:00:27]} 49... Ne4 {[%clk
0:00:07.4]} 50. Kf3 {[%clk 0:00:27.5]} 50... Nf6 {[%clk 0:00:04]} 51. Kf4 {[%clk
0:00:27.5]} 51... Ng4 {[%clk 0:00:03.1]} 52. Nxg4 {[%clk 0:00:24.8]} 52... fxg4
{[%clk 0:00:03.3]} 53. Kxg4 {[%clk 0:00:25.7]} 1-0

[Event "Late-Titled-Tuesday-Blitz-January-30-2024"]
[Site "Chess.com"]
[Date "2024.01.30"]
[Round "10"]
[White "tptagain"]
[Black "Njal28"]
[Result "1-0"]
[WhiteElo "2926"]
[BlackElo "3037"]
[TimeControl "180+1"]
[EndTime "15:55:24 PST"]
[Termination "tptagain won by resignation"]

1. e4 {[%clk 0:03:00.9]} 1... c5 {[%clk 0:02:58.7]} 2. Nf3 {[%clk 0:03:01.2]}
2... Nc6 {[%clk 0:02:56.5]} 3. Bb5 {[%clk 0:03:00.9]} 3... e6 {[%clk 0:02:55]}
4. Bxc6 {[%clk 0:03:00.2]} 4... bxc6 {[%clk 0:02:54.4]} 5. d3 {[%clk 0:03:00.5]}
5... Ne7 {[%clk 0:02:54.2]} 6. h4 {[%clk 0:02:55.8]} 6... d6 {[%clk 0:02:52.3]}
7. h5 {[%clk 0:02:53.3]} 7... e5 {[%clk 0:02:50.7]} 8. h6 {[%clk 0:02:53.1]}
8... Bg4 {[%clk 0:02:51]} 9. hxg7 {[%clk 0:02:50]} 9... Bxg7 {[%clk 0:02:51.9]}
10. Bh6 {[%clk 0:02:50.1]} 10... Bxh6 {[%clk 0:02:47.9]} 11. Rxh6 {[%clk
0:02:51]} 11... Ng6 {[%clk 0:02:48.4]} 12. Nbd2 {[%clk 0:02:47]} 12... Qf6
{[%clk 0:02:43.1]} 13. Qe2 {[%clk 0:02:28.5]} 13... Qg7 {[%clk 0:02:40.2]} 14.
Rh2 {[%clk 0:02:28.4]} 14... h5 {[%clk 0:02:40.1]} 15. O-O-O {[%clk 0:02:24.6]}
15... Rb8 {[%clk 0:02:35.3]} 16. Kb1 {[%clk 0:02:23.7]} 16... Qf6 {[%clk
0:02:31.8]} 17. Qe3 {[%clk 0:02:15.9]} 17... Ke7 {[%clk 0:02:26.8]} 18. b3
{[%clk 0:02:13.4]} 18... Nf4 {[%clk 0:02:24.5]} 19. Rdh1 {[%clk 0:02:09.1]}
19... Ne6 {[%clk 0:02:24.4]} 20. Ne1 {[%clk 0:02:06.7]} 20... Nd4 {[%clk
0:02:22.3]} 21. f3 {[%clk 0:02:06]} 21... Be6 {[%clk 0:02:21.9]} 22. Rxh5 {[%clk
0:02:05]} 22... Rhg8 {[%clk 0:02:16.4]} 23. Rh6 {[%clk 0:01:54.9]} 23... Qg7
{[%clk 0:02:14.1]} 24. g4 {[%clk 0:01:37]} 24... Kd7 {[%clk 0:02:03]} 25. Rh7
{[%clk 0:01:34.5]} 25... Qf8 {[%clk 0:02:02.5]} 26. c3 {[%clk 0:01:31]} 26...
Nb5 {[%clk 0:02:02.6]} 27. Kb2 {[%clk 0:01:30.2]} 27... a5 {[%clk 0:01:54.9]}
28. a4 {[%clk 0:01:23.1]} 28... Nc7 {[%clk 0:01:55.1]} 29. Nc2 {[%clk
0:01:21.7]} 29... Rb7 {[%clk 0:01:47.8]} 30. Na3 {[%clk 0:01:09.2]} 30... Qe7
{[%clk 0:01:44.6]} 31. Nac4 {[%clk 0:01:05.6]} 31... Rgb8 {[%clk 0:01:40]} 32.
Rh8 {[%clk 0:01:01.5]} 32... Rxh8 {[%clk 0:01:33.4]} 33. Rxh8 {[%clk 0:01:01.5]}
33... Na6 {[%clk 0:01:20.9]} 34. Qh6 {[%clk 0:00:54.3]} 34... Rb8 {[%clk
0:01:15.4]} 35. Rxb8 {[%clk 0:00:52.7]} 35... Nxb8 {[%clk 0:01:16.3]} 36. Nxa5
{[%clk 0:00:51.5]} 36... Kc7 {[%clk 0:01:16.5]} 37. Nac4 {[%clk 0:00:49.9]}
37... Nd7 {[%clk 0:01:16.2]} 38. g5 {[%clk 0:00:41]} 38... Qd8 {[%clk 0:01:14]}
39. Ne3 {[%clk 0:00:39.5]} 39... Nf8 {[%clk 0:01:11.8]} 40. Nf5 {[%clk 0:00:26]}
40... Ng6 {[%clk 0:01:09.8]} 41. Nc4 {[%clk 0:00:26.1]} 41... d5 {[%clk
0:01:05.4]} 42. exd5 {[%clk 0:00:25.9]} 42... Bxf5 {[%clk 0:01:03.3]} 43. d6+
{[%clk 0:00:21.8]} 43... Kd7 {[%clk 0:01:00.7]} 44. Kc2 {[%clk 0:00:19.7]} 44...
Qe8 {[%clk 0:00:55.1]} 45. Qg7 {[%clk 0:00:18.8]} 45... Be6 {[%clk 0:00:47.5]}
46. Qf6 {[%clk 0:00:12.6]} 46... Qb8 {[%clk 0:00:35.2]} 47. a5 {[%clk
0:00:11.1]} 47... e4 {[%clk 0:00:28.1]} 48. fxe4 {[%clk 0:00:10.6]} 48... Bxc4
{[%clk 0:00:24.9]} 49. dxc4 {[%clk 0:00:11.5]} 49... Qxd6 {[%clk 0:00:21.9]} 50.
Qxf7+ {[%clk 0:00:11.7]} 50... Ne7 {[%clk 0:00:22.6]} 51. Qf2 {[%clk 0:00:08.9]}
51... Qe5 {[%clk 0:00:18.3]} 52. Qg2 {[%clk 0:00:07.3]} 52... Ng6 {[%clk
0:00:17.8]} 53. a6 {[%clk 0:00:07.2]} 53... Kc7 {[%clk 0:00:18.5]} 54. Qg4
{[%clk 0:00:06.8]} 54... Kb6 {[%clk 0:00:18.6]} 55. Kb2 {[%clk 0:00:07]} 55...
Qh2+ {[%clk 0:00:18.5]} 56. Ka3 {[%clk 0:00:07.2]} 56... Qh1 {[%clk 0:00:18.7]}
57. Kb2 {[%clk 0:00:07.2]} 57... Qd1 {[%clk 0:00:18]} 58. Qxd1 {[%clk
0:00:06.8]} 1-0

[Event "Late-Titled-Tuesday-Blitz-January-30-2024"]
[Site "Chess.com"]
[Date "2024.01.30"]
[Round "10"]
[White "Noki102"]
[Black "GMKrikor"]
[Result "0-1"]
[WhiteElo "2527"]
[BlackElo "2786"]
[TimeControl "180+1"]
[EndTime "15:55:24 PST"]
[Termination "GMKrikor won by resignation"]

1. d4 {[%clk 0:03:00.9]} 1... Nf6 {[%clk 0:02:58.4]} 2. Nf3 {[%clk 0:03:01.5]}
2... g6 {[%clk 0:02:55.5]} 3. g3 {[%clk 0:02:59.5]} 3... Bg7 {[%clk 0:02:55.2]}
4. Bg2 {[%clk 0:03:00.2]} 4... d5 {[%clk 0:02:49.1]} 5. O-O {[%clk 0:03:00.8]}
5... O-O {[%clk 0:02:48.9]} 6. c4 {[%clk 0:03:01.3]} 6... dxc4 {[%clk
0:02:48.4]} 7. Na3 {[%clk 0:03:01.4]} 7... Nc6 {[%clk 0:02:45.2]} 8. Nxc4 {[%clk
0:03:00.5]} 8... Be6 {[%clk 0:02:39.3]} 9. Nce5 {[%clk 0:02:55.8]} 9... Bd5
{[%clk 0:02:38]} 10. Be3 {[%clk 0:02:44.4]} 10... a5 {[%clk 0:02:31.5]} 11. Rc1
{[%clk 0:02:40.7]} 11... a4 {[%clk 0:02:23.7]} 12. a3 {[%clk 0:02:23.6]} 12...
e6 {[%clk 0:02:15.3]} 13. h3 {[%clk 0:02:22.6]} 13... Na5 {[%clk 0:02:02.6]} 14.
Nd2 {[%clk 0:01:39.8]} 14... Bxg2 {[%clk 0:01:53.4]} 15. Kxg2 {[%clk 0:01:40.7]}
15... Nd5 {[%clk 0:01:43]} 16. Ndc4 {[%clk 0:01:10.3]} 16... Nb3 {[%clk
0:01:35.4]} 17. Rc2 {[%clk 0:01:05.2]} 17... Nxe3+ {[%clk 0:01:09.2]} 18. fxe3
{[%clk 0:01:01.7]} 18... b5 {[%clk 0:00:59]} 19. Nd2 {[%clk 0:00:50.9]} 19...
Bxe5 {[%clk 0:00:55.5]} 20. dxe5 {[%clk 0:00:50.8]} 20... Qd5+ {[%clk
0:00:50.3]} 21. Nf3 {[%clk 0:00:48.4]} 21... c5 {[%clk 0:00:49.5]} 22. Qxd5
{[%clk 0:00:40.8]} 22... exd5 {[%clk 0:00:49.9]} 23. Rd1 {[%clk 0:00:41.7]}
23... Rad8 {[%clk 0:00:46.4]} 24. Nd2 {[%clk 0:00:36.3]} 24... c4 {[%clk
0:00:34]} 25. Nxb3 {[%clk 0:00:35.6]} 25... axb3 {[%clk 0:00:28.6]} 26. Rcd2
{[%clk 0:00:35.8]} 26... Rfe8 {[%clk 0:00:18.1]} 27. Rxd5 {[%clk 0:00:31.3]}
27... Rb8 {[%clk 0:00:16.9]} 28. Rc5 {[%clk 0:00:28.1]} 28... Re6 {[%clk
0:00:15.1]} 29. e4 {[%clk 0:00:22.7]} 29... Rbe8 {[%clk 0:00:11.7]} 30. Rdd5
{[%clk 0:00:21.9]} 30... f6 {[%clk 0:00:09.7]} 31. Rxb5 {[%clk 0:00:06.5]} 31...
Rxe5 {[%clk 0:00:10]} 32. Rxe5 {[%clk 0:00:06.7]} 32... Rxe5 {[%clk 0:00:10.9]}
33. Rb4 {[%clk 0:00:07.5]} 33... Rxe4 {[%clk 0:00:09.5]} 34. Kf3 {[%clk
0:00:08]} 34... f5 {[%clk 0:00:09.4]} 35. e3 {[%clk 0:00:07.3]} 35... Kf7 {[%clk
0:00:06.3]} 36. a4 {[%clk 0:00:07.4]} 36... Ke6 {[%clk 0:00:06.3]} 37. a5 {[%clk
0:00:07.9]} 37... Kd5 {[%clk 0:00:07]} 38. a6 {[%clk 0:00:07.9]} 38... Re8
{[%clk 0:00:07.4]} 39. Rb5+ {[%clk 0:00:07.1]} 39... Kc6 {[%clk 0:00:07.3]} 40.
Rb7 {[%clk 0:00:06.8]} 40... Ra8 {[%clk 0:00:06.9]} 41. Rb4 {[%clk 0:00:04.7]}
41... Kc5 {[%clk 0:00:06.2]} 42. Ra4 {[%clk 0:00:03.7]} 42... Kb5 {[%clk
0:00:06.7]} 43. Ra1 {[%clk 0:00:02.3]} 43... Rxa6 {[%clk 0:00:07.1]} 44. Rxa6
{[%clk 0:00:02.7]} 44... Kxa6 {[%clk 0:00:07.3]} 45. Ke2 {[%clk 0:00:03.4]}
45... Kb5 {[%clk 0:00:07.5]} 46. Kd2 {[%clk 0:00:04.1]} 46... Kb4 {[%clk
0:00:06.9]} 47. g4 {[%clk 0:00:04.3]} 47... fxg4 {[%clk 0:00:06.2]} 48. hxg4
{[%clk 0:00:04.1]} 48... h5 {[%clk 0:00:07]} 49. gxh5 {[%clk 0:00:03.4]} 49...
gxh5 {[%clk 0:00:07.9]} 50. e4 {[%clk 0:00:03.5]} 50... Kc5 {[%clk 0:00:07.9]}
51. Ke3 {[%clk 0:00:04]} 51... h4 {[%clk 0:00:06.8]} 0-1